bitfinex-derivatives/quotes_BTCF0:USTF0_20251208
["timestamp","ask_amount","ask_price","bid_price","bid_amount"]
[1765205105268,0.00013518,91472.0,91469.0,0.0109328]
[1765205105470,0.00013518,91472.0,91471.0,0.29654]
[1765205105767,0.0109326,91471.0,91459.0,0.01102534]
[1765205105975,0.00013518,91472.0,91460.0,0.0109339]
[1765205106270,0.00013518,91472.0,91459.0,0.01309134]
[1765205106457,0.28829,91460.0,91459.0,0.01309134]
[1765205106661,0.2884139,91460.0,91459.0,0.01309134]
[1765205106862,0.2884139,91460.0,91459.0,0.02109134]
[1765205107159,0.28829,91457.0,91456.0,0.00016393]
[1765205108167,0.0109349,91452.0,91417.0,0.0292515]
[1765205108472,0.0001239,91460.0,91445.0,0.0109356]
[1765205108771,0.0001239,91460.0,91459.0,0.014]
[1765205108772,0.2884139,91460.0,91459.0,0.014]
[1765205109067,0.0001239,91460.0,91450.0,0.01109903]
[1765205109368,0.0001239,91460.0,91432.0,0.0892]
[1765205109369,0.002,91457.0,91454.0,0.0109346]
[1765205109568,0.002,91457.0,91456.0,0.29654]
[1765205109773,0.001,91457.0,91456.0,0.29654]
[1765205110068,0.0001239,91460.0,91452.0,0.0109348]
[1765205110370,0.0001239,91460.0,91459.0,0.29654]
[1765205110574,0.0109303,91491.0,91477.0,0.0109318]
[1765205111072,0.0109303,91491.0,91456.0,0.001]
[1765205111073,0.0109308,91487.0,91472.0,0.0109324]
[1765205111270,0.24439601,91500.0,91456.0,0.001]
[1765205111569,0.01109473,91487.0,91474.0,0.0109321]
[1765205111773,0.00016403,91487.0,91469.0,0.00016403]
[1765205111975,0.00016403,91487.0,91485.0,0.0109309]
[1765205112272,0.00016403,91487.0,91486.0,0.28571]
[1765205112771,0.00016403,91487.0,91469.0,0.00016403]
[1765205112772,0.00027313,91487.0,91469.0,0.01109673]
[1765205112974,0.0109318,91478.0,91469.0,0.01109673]
[1765205113272,0.0109308,91486.0,91485.0,0.003]
[1765205113471,0.1481008,91486.0,91485.0,0.003]
[1765205113686,0.2897308,91486.0,91485.0,0.003]
[1765205113972,0.2897308,91486.0,91485.0,0.002]
[1765205114174,0.0109317,91479.0,91469.0,0.00016403]
[1765205114374,0.0109321,91475.0,91469.0,0.00016403]
[1765205114569,0.00027313,91487.0,91469.0,0.00016403]
[1765205114570,0.2788,91470.0,91469.0,0.00016403]
[1765205114772,0.010933,91468.0,91434.0,0.010937]
[1765205115070,0.1346224,91460.0,91434.0,0.010937]
[1765205115272,0.1346224,91460.0,91456.0,0.0109343]
[1765205115273,0.0001091,91459.0,91456.0,0.0109343]
[1765205115872,0.0001091,91459.0,91458.0,0.28248]
[1765205116073,0.00016403,91467.0,91466.0,0.2934132]
[1765205116972,0.13733403,91467.0,91463.0,0.0109334]
[1765205117176,0.00016403,91467.0,91466.0,0.28448]
[1765205117571,0.00116403,91467.0,91466.0,0.29548]
[1765205117775,0.00116403,91467.0,91466.0,0.013]
[1765205118078,0.27996403,91467.0,91466.0,0.013]
[1765205118576,0.0109345,91455.0,91448.0,0.01109933]
[1765205118878,0.2788,91449.0,91448.0,0.00016403]
[1765205119172,0.2897352,91449.0,91448.0,0.00016403]
[1765205119767,0.2788,91449.0,91448.0,0.00016403]
[1765205120079,0.2788,91449.0,91448.0,0.00116403]
[1765205120267,0.2798,91449.0,91448.0,0.00116403]
[1765205120666,0.001,91449.0,91448.0,0.00116403]
[1765205121580,0.2907352,91449.0,91448.0,0.00016403]
[1765205121879,0.2907352,91449.0,91448.0,0.00116403]
[1765205122067,0.2907352,91449.0,91400.0,0.08701]
[1765205122068,0.13717,91431.0,91426.0,0.0109379]
[1765205122264,0.13717,91431.0,91413.0,0.1001395]
[1765205122265,0.03717,91431.0,91413.0,0.1001395]
[1765205122472,0.001,91449.0,91403.0,9.676e-05]
[1765205122473,0.1346224,91430.0,91403.0,9.676e-05]
[1765205122673,0.1346224,91415.0,91409.0,0.01094]
[1765205122877,0.13717,91426.0,91425.0,0.010938]
[1765205123074,0.2788,91417.0,91416.0,0.00016403]
[1765205124081,0.1346224,91426.0,91417.0,0.010939]
[1765205124274,0.004,91417.0,91416.0,0.00116403]
[1765205124772,0.0109384,91422.0,91416.0,0.00016403]
[1765205124974,0.004,91417.0,91416.0,0.00316403]
[1765205125379,0.2828,91417.0,91416.0,0.00316403]
[1765205125572,0.2828,91417.0,91416.0,0.00116403]
[1765205125883,0.2828,91417.0,91416.0,0.00316403]
[1765205126268,0.2728,91417.0,91416.0,0.00316403]
[1765205126974,0.2728,91417.0,91406.0,0.0109403]
[1765205126975,0.2788,91407.0,91406.0,0.0109404]
[1765205127482,0.0109393,91415.0,91408.0,0.0109401]
[1765205127682,0.2788,91409.0,91408.0,0.0109401]
[1765205127982,0.006,91417.0,91416.0,0.28248]
[1765205129378,0.1803134,91450.0,91410.0,0.0546995]
[1765205129579,0.0109347,91454.0,91450.0,0.010935]
[1765205129889,0.0109353,91449.0,91442.0,0.010936]
[1765205130079,0.0109339,91461.0,91425.0,0.010938]
[1765205130080,0.0109355,91447.0,91425.0,0.0109381]
[1765205130381,0.0109355,91447.0,91422.0,0.08701]
[1765205130382,0.1803131,91452.0,91448.0,0.0109353]
[1765205130570,0.2788,91449.0,91448.0,0.0109353]
[1765205130770,0.1693782,91452.0,91430.0,0.0109374]
[1765205130971,0.1693782,91440.0,91436.0,0.0109367]
[1765205131172,0.016,91454.0,91427.0,0.01110183]
[1765205131377,0.010936,91443.0,91439.0,0.0109363]
[1765205131578,0.1693782,91450.0,91449.0,0.0109352]
[1765205131782,0.010935,91452.0,91449.0,0.0109352]
[1765205132576,0.016,91454.0,91445.0,0.0109356]
[1765205132880,0.014,91447.0,91427.0,0.00016403]
[1765205133080,0.0109361,91442.0,91440.0,0.0109362]
[1765205133280,0.13717,91444.0,91442.0,0.0109359]
[1765205133580,0.1481059,91443.0,91427.0,0.00016403]
[1765205133788,0.0109351,91451.0,91446.0,0.0109354]
[1765205133975,0.00016403,91459.0,91449.0,0.0109352]
[1765205134174,0.0109346,91454.0,91452.0,0.0109348]
[1765205134388,0.00016403,91459.0,91455.0,0.0109344]
[1765205134389,0.0109342,91458.0,91455.0,0.0109344]
[1765205134584,0.0109357,91445.0,91444.0,0.00016403]
[1765205134782,0.001,91452.0,91449.0,0.0109351]
[1765205135087,0.0119349,91452.0,91449.0,0.0109351]
[1765205135386,0.0109345,91455.0,91452.0,0.0109348]
[1765205135579,0.00016403,91459.0,91447.0,0.0109354]
[1765205135779,0.2788,91453.0,91444.0,0.00016403]
[1765205135978,0.13717,91452.0,91451.0,0.0109349]
[1765205136191,0.2788,91452.0,91451.0,0.0109349]
[1765205136984,0.13717,91449.0,91448.0,0.0109353]
[1765205137186,0.0109357,91446.0,91445.0,0.0109357]
[1765205137586,0.2788,91445.0,91444.0,0.00016403]
[1765205138285,0.0109356,91447.0,91445.0,0.0109357]
[1765205138594,0.2788,91445.0,91444.0,0.00016403]
[1765205139791,0.2918,91445.0,91444.0,0.00216403]
[1765205140787,0.2788,91445.0,91444.0,0.00016403]
[1765205140984,0.2908,91445.0,91444.0,0.00216403]
[1765205141184,0.2908,91445.0,91444.0,0.00316403]
[1765205141589,0.012,91445.0,91444.0,0.00316403]
[1765205141989,0.012,91445.0,91444.0,0.00216403]
[1765205142194,0.013,91445.0,91444.0,0.00216403]
[1765205142386,0.014,91445.0,91444.0,0.00216403]
[1765205142694,0.28641,91445.0,91444.0,0.00216403]
[1765205142889,0.27341,91445.0,91444.0,0.00016403]
[1765205143090,0.28541,91445.0,91444.0,0.00216403]
[1765205143699,0.27341,91445.0,91444.0,0.00016403]
[1765205143887,0.012,91445.0,91444.0,0.00216403]
[1765205144584,0.012,91445.0,91444.0,0.26631403]
[1765205144795,0.00016403,91459.0,91444.0,0.26631403]
[1765205145096,0.00016403,91459.0,91456.0,0.0109343]
[1765205145097,0.0109342,91458.0,91456.0,0.0109343]
[1765205145395,0.0109348,91454.0,91453.0,0.0109347]
[1765205145591,0.011,91445.0,91444.0,0.01309983]
[1765205145899,0.011,91445.0,91444.0,0.26731403]
[1765205146099,0.13235,91458.0,91457.0,0.0109342]
[1765205146298,0.02409813,91459.0,91457.0,0.0109342]
[1765205146604,0.01109813,91459.0,91457.0,0.0109342]
[1765205147096,0.00016403,91459.0,91457.0,0.0109342]
[1765205147301,0.00016403,91459.0,91458.0,0.26415]
[1765205147704,0.0109322,91475.0,91474.0,0.0109322]
[1765205147895,0.0109322,91475.0,91457.0,0.002]
[1765205147896,0.0109324,91473.0,91468.0,0.0109329]
[1765205148198,0.52875,91486.0,91485.0,0.0109309]
[1765205148596,0.3964,91486.0,91485.0,0.0109309]
[1765205148903,0.26759,91477.0,91476.0,0.00016403]
[1765205150501,0.27959,91477.0,91476.0,0.00116403]
[1765205151094,0.012,91477.0,91476.0,0.00116403]
[1765205151311,0.28359,91477.0,91476.0,0.00116403]
[1765205152114,0.016,91477.0,91476.0,0.12754403]
[1765205152422,0.05834574,91525.0,91494.0,0.3570998]
[1765205152623,0.0109272,91517.0,91514.0,0.0109274]
[1765205152920,0.1693782,91520.0,91517.0,0.010927]
[1765205153131,0.5208,91529.0,91525.0,0.0109261]
[1765205153323,0.1693782,91550.0,91518.0,0.0109269]
[1765205153518,0.0109221,91559.0,91518.0,0.0109269]
[1765205153519,0.1693782,91540.0,91518.0,0.0109269]
[1765205153717,0.1693782,91540.0,91520.0,0.00016392]
[1765205153718,0.00016392,91538.0,91520.0,0.00016392]
[1765205153917,0.00016392,91538.0,91532.0,0.0109252]
[1765205154125,0.00016392,91538.0,91520.0,0.00016392]
[1765205154126,0.00016392,91538.0,91536.0,0.0109248]
[1765205154326,0.00016392,91538.0,91537.0,0.26415]
[1765205154524,0.26775392,91538.0,91520.0,0.00016392]
[1765205154729,0.26759,91535.0,91534.0,0.010925]
[1765205154916,0.13235,91535.0,91520.0,0.00016392]
[1765205155415,0.00116392,91538.0,91537.0,0.2750747]
[1765205155826,0.5208,91556.0,91537.0,0.2750747]
[1765205155827,0.5208,91556.0,91555.0,0.2750726]
[1765205156121,0.0109203,91575.0,91563.0,0.2750716]
[1765205156527,0.00079574,91564.0,91563.0,0.2750716]
[1765205156917,0.00079574,91564.0,91563.0,0.26415]
[1765205157221,0.00016382,91573.0,91563.0,0.26415]
[1765205157424,0.00016382,91573.0,91572.0,0.26415]
[1765205158022,0.00016382,91573.0,91554.0,0.01108642]
[1765205158225,0.004,91564.0,91555.0,0.0109225]
[1765205158424,0.26759,91555.0,91554.0,0.00016382]
[1765205158817,0.004,91564.0,91554.0,0.00016382]
[1765205158818,0.013,91564.0,91554.0,0.00016382]
[1765205159017,0.13235,91555.0,91554.0,0.00016382]
[1765205159223,0.25691,91555.0,91554.0,0.00016382]
[1765205160527,0.1693782,91540.0,91524.0,0.0109262]
[1765205160720,0.1693782,91550.0,91512.0,0.08202]
[1765205161028,0.1693782,91540.0,91520.0,0.0109267]
[1765205161327,0.0109262,91525.0,91512.0,0.08202]
[1765205161626,0.1693782,91522.0,91510.0,0.0109279]
[1765205161813,0.00016382,91528.0,91509.0,0.00016382]
[1765205162017,0.00016382,91528.0,91527.0,0.25089]
[1765205162234,0.001,91540.0,91539.0,0.2618145]
[1765205162522,0.002,91550.0,91549.0,0.25089]
[1765205162729,0.002,91550.0,91537.0,0.0109246]
[1765205162921,0.1693782,91547.0,91542.0,0.010924]
[1765205163120,0.1693782,91547.0,91523.0,0.07283]
[1765205163121,0.002,91550.0,91549.0,0.25089]
[1765205163517,0.00016392,91559.0,91549.0,0.25089]
[1765205164018,0.003,91550.0,91549.0,0.2618133]
[1765205164218,0.00016392,91559.0,91558.0,0.2618122]
[1765205164418,0.05,91587.0,91577.0,0.0109198]
[1765205164624,0.05,91587.0,91586.0,0.25089]
[1765205164828,0.01810196,91587.0,91586.0,0.25089]
[1765205165022,3.79e-06,91590.0,91589.0,0.25089]
[1765205165222,0.0109122,91642.0,91626.0,0.0109141]
[1765205165424,0.1327523,91674.0,91627.0,0.0109139]
[1765205165425,0.00038168,91643.0,91627.0,0.0109139]
[1765205165728,0.00038168,91643.0,91625.0,0.00016373]
[1765205166027,0.01129378,91643.0,91625.0,0.00016373]
[1765205166334,0.0109129,91636.0,91625.0,0.00016373]
[1765205166530,0.1693782,91640.0,91625.0,0.00016373]
[1765205166727,0.01529378,91643.0,91625.0,0.00016373]
[1765205167332,0.01529378,91643.0,91600.0,0.2422082]
[1765205167333,0.12225,91626.0,91600.0,0.07283]
[1765205167532,0.00438168,91643.0,91586.0,1.501]
[1765205167533,0.1693782,91620.0,91586.0,1.5]
[1765205167832,0.00421846,91643.0,91586.0,1.5]
[1765205167833,0.1693782,91610.0,91586.0,1.5]
[1765205168036,0.1008,91633.0,91597.0,0.0109174]
[1765205168223,0.0109151,91618.0,91596.0,0.0109176]
[1765205168425,0.00016373,91616.0,91600.0,0.0109172]
[1765205168634,0.00016373,91616.0,91598.0,0.00016373]
[1765205168635,0.0109161,91609.0,91598.0,0.00016373]
[1765205168935,0.0109154,91615.0,91598.0,0.00016373]
[1765205169231,0.1693782,91610.0,91598.0,0.00016373]
[1765205169421,0.0109187,91588.0,91562.0,0.0109217]
[1765205169622,0.1693782,91580.0,91567.0,0.0109211]
[1765205169823,0.1693782,91590.0,91567.0,0.0109211]
[1765205170023,0.06989,91602.0,91550.0,0.1693782]
[1765205170230,0.1693782,91560.0,91552.0,0.0109228]
[1765205170435,0.1693782,91570.0,91552.0,0.0109228]
[1765205170635,0.0109223,91558.0,91552.0,0.00016383]
[1765205170830,0.24681,91553.0,91552.0,0.00016383]
[1765205171534,0.0109236,91547.0,91534.0,0.00012152]
[1765205171839,0.28404,91567.0,91534.0,0.00012152]
[1765205171840,0.1693782,91550.0,91535.0,0.0109249]
[1765205172133,0.0109239,91544.0,91534.0,0.00012152]
[1765205172333,0.00016383,91548.0,91534.0,0.00012152]
[1765205172728,0.00016383,91548.0,91539.0,0.0109244]
[1765205173130,0.00016383,91548.0,91534.0,0.00012152]
[1765205173332,0.00016383,91548.0,91535.0,0.006]
[1765205173828,0.00016383,91548.0,91544.0,0.0109238]
[1765205174229,0.00016383,91548.0,91547.0,0.13135]
[1765205174531,0.00016383,91548.0,91547.0,0.26178]
[1765205175044,0.00016383,91548.0,91544.0,0.0109238]
[1765205175638,0.00016383,91548.0,91547.0,0.007]
[1765205176037,0.00016383,91548.0,91547.0,0.13835]
[1765205176234,0.00016383,91548.0,91547.0,0.13335]
[1765205176430,0.00016383,91548.0,91547.0,0.002]
[1765205176631,0.00016383,91548.0,91547.0,0.26378]
[1765205176939,0.00016383,91548.0,91547.0,0.26278]
[1765205177458,0.0109192,91584.0,91547.0,0.001]
[1765205177459,0.1693782,91580.0,91547.0,0.001]
[1765205177737,0.1693782,91580.0,91550.0,0.0109231]
[1765205177937,0.0109181,91592.0,91560.0,0.07581]
[1765205178130,0.06156,91623.0,91560.0,0.07581]
[1765205178131,0.0109174,91599.0,91588.0,0.0109185]
[1765205178332,0.16954203,91600.0,91581.0,0.00016383]
[1765205178633,0.1693782,91590.0,91586.0,0.0109188]
[1765205178833,0.1693782,91590.0,91581.0,0.01108323]
[1765205179142,0.1693782,91590.0,91585.0,0.0109189]
[1765205179340,0.005,91592.0,91591.0,0.13135]
[1765205179732,0.00016383,91600.0,91598.0,0.0109174]
[1765205180035,0.00016383,91600.0,91593.0,0.0109179]
[1765205180337,0.52032,91620.0,91615.0,0.0109154]
[1765205180338,0.6896982,91620.0,91615.0,0.0109154]
[1765205180647,0.52032,91620.0,91615.0,0.0109154]
[1765205180941,0.049492,91644.0,91615.0,0.0109154]
[1765205180942,0.1693782,91625.0,91615.0,0.0109154]
[1765205181136,0.52024,91644.0,91616.0,0.26178]
[1765205181339,0.00016373,91626.0,91625.0,0.2726942]
[1765205181938,0.00021846,91643.0,91642.0,0.2726922]
[1765205182132,0.1693782,91680.0,91644.0,0.07581]
[1765205182331,0.0109087,91672.0,91656.0,0.0109105]
[1765205182543,0.0109087,91672.0,91644.0,0.07581]
[1765205182544,0.0109083,91675.0,91645.0,1.5]
[1765205182734,0.1732,91689.0,91670.0,0.0109088]
[1765205182937,0.1732,91689.0,91670.0,0.00016363]
[1765205182938,0.17336279,91689.0,91670.0,0.00016363]
[1765205183237,0.0109077,91680.0,91670.0,0.00016363]
[1765205183436,0.1693782,91680.0,91670.0,0.00016363]
[1765205183636,0.00016279,91689.0,91678.0,0.0109078]
[1765205183946,0.00016279,91689.0,91670.0,0.00016363]
[1765205183947,0.00816279,91689.0,91688.0,0.13135]
[1765205184132,0.0109067,91688.0,91676.0,0.0109081]
[1765205184449,0.00816279,91689.0,91670.0,0.00116363]
[1765205184831,0.0109084,91675.0,91670.0,0.00116363]
[1765205185037,0.24536,91671.0,91670.0,0.00116363]
[1765205185335,0.00816279,91689.0,91621.0,0.02933812]
[1765205185336,0.0109084,91674.0,91621.0,0.02933812]
[1765205185544,0.0109102,91659.0,91648.0,0.0109114]
[1765205185741,0.013,91689.0,91665.0,0.0109093]
[1765205185943,0.013,91689.0,91653.0,1.5]
[1765205185944,0.1693782,91680.0,91653.0,1.5]
[1765205186250,0.1693782,91670.0,91659.0,0.0109101]
[1765205186448,0.1693782,91670.0,91634.0,0.0109131]
[1765205186449,0.001,91671.0,91655.0,0.00016363]
[1765205186841,0.0119089,91671.0,91657.0,0.0109104]
[1765205187043,0.00016363,91674.0,91655.0,0.00016363]
[1765205187044,0.0109099,91662.0,91655.0,0.00016363]
[1765205187242,0.0109104,91658.0,91655.0,0.00016363]
[1765205187453,0.010909,91669.0,91655.0,0.00016363]
[1765205187648,0.1339763,91670.0,91655.0,0.00016363]
[1765205187850,0.010909,91669.0,91655.0,0.00016363]
[1765205188153,0.01091,91661.0,91655.0,0.00016363]
[1765205188449,0.1339763,91665.0,91655.0,0.003]
[1765205188450,0.24536,91656.0,91655.0,0.003]
[1765205188944,0.0109108,91654.0,91640.0,0.0109124]
[1765205189244,0.46704,91667.0,91624.0,1.5]
[1765205189245,0.1339763,91660.0,91652.0,0.0109109]
[1765205189447,0.002,91671.0,91662.0,0.0109097]
[1765205189448,0.00016363,91665.0,91662.0,0.0109097]
[1765205189851,0.00016363,91665.0,91647.0,0.00016363]
[1765205189852,0.00016363,91665.0,91657.0,0.0109103]
[1765205190243,0.01107313,91665.0,91652.0,0.0109109]
[1765205190441,0.0109109,91653.0,91647.0,0.00016363]
[1765205190645,0.010911,91652.0,91647.0,0.00016363]
[1765205190843,0.0109104,91657.0,91647.0,0.00016363]
[1765205191046,0.1339763,91662.0,91647.0,0.00016363]
[1765205191047,0.12072,91648.0,91647.0,0.00016363]
[1765205191448,0.24536,91648.0,91647.0,0.00016363]
[1765205192149,0.05476,91660.0,91630.0,0.0109135]
[1765205192462,0.1339763,91640.0,91624.0,0.0109143]
[1765205192756,0.1339763,91634.0,91595.0,0.04326152]
[1765205192959,0.0109154,91616.0,91607.0,0.0109163]
[1765205193260,0.0109171,91602.0,91594.0,0.0109179]
[1765205193547,0.0109166,91606.0,91591.0,0.00016372]
[1765205193746,0.0109162,91608.0,91600.0,0.0109172]
[1765205193952,0.00016372,91621.0,91606.0,0.0109164]
[1765205193953,0.1339763,91620.0,91606.0,0.0109164]
[1765205194143,0.0109162,91609.0,91600.0,0.0109172]
[1765205194341,0.0109166,91606.0,91595.0,0.0109177]
[1765205194550,0.0109163,91608.0,91599.0,0.01100867]
[1765205194743,0.0109171,91601.0,91599.0,9.137e-05]
[1765205194945,0.002,91606.0,91600.0,0.0109172]
[1765205195143,0.12072,91600.0,91599.0,9.137e-05]
[1765205195348,0.24536,91600.0,91599.0,9.137e-05]
[1765205195839,0.1339763,91610.0,91599.0,9.137e-05]
[1765205196045,0.0109169,91603.0,91599.0,9.137e-05]
[1765205196439,0.24536,91600.0,91599.0,9.137e-05]
[1765205196645,0.1339763,91610.0,91591.0,0.00016372]
[1765205196646,0.2562781,91592.0,91591.0,0.00016372]
[1765205196840,0.00016372,91601.0,91591.0,0.00016372]
[1765205197147,0.00016372,91601.0,91600.0,0.001]
[1765205197452,0.00016372,91601.0,91591.0,0.00016372]
[1765205197453,0.00016372,91601.0,91591.0,0.01108192]
[1765205197652,8.49e-05,91600.0,91599.0,0.26178]
[1765205198543,0.0109173,91599.0,91592.0,0.010918]
[1765205198747,8.49e-05,91600.0,91591.0,0.00016372]
[1765205198748,0.0109177,91596.0,91591.0,0.00016372]
[1765205198945,8.49e-05,91600.0,91591.0,0.01108192]
[1765205199257,0.0109173,91599.0,91591.0,0.00016372]
[1765205199554,8.49e-05,91600.0,91591.0,0.01108192]
[1765205199750,8.49e-05,91600.0,91599.0,0.2726973]
[1765205200056,0.1339763,91630.0,91627.0,0.0109139]
[1765205200262,0.0109129,91637.0,91613.0,0.0109156]
[1765205200448,0.1339763,91640.0,91631.0,0.0109134]
[1765205200645,0.1339763,91650.0,91645.0,0.0109118]
[1765205200845,0.00016372,91657.0,91648.0,0.0109114]
[1765205201149,0.00016372,91657.0,91638.0,0.00016372]
[1765205201458,0.00016372,91657.0,91653.0,0.0109108]
[1765205202359,0.00116372,91657.0,91653.0,0.0109108]
[1765205202546,0.00116372,91657.0,91656.0,0.22938]
[1765205204048,0.00016372,91657.0,91656.0,0.23138]
[1765205204455,0.00016372,91657.0,91656.0,0.11501]
[1765205204759,0.00016372,91657.0,91656.0,0.002]
[1765205205148,0.0109114,91650.0,91643.0,0.010912]
[1765205205350,0.1339763,91653.0,91638.0,0.00016372]
[1765205205546,0.0109115,91648.0,91642.0,0.0109121]
[1765205205754,0.0109117,91646.0,91638.0,0.01107632]
[1765205205952,0.0109125,91640.0,91638.0,0.00016372]
[1765205206154,0.23445,91639.0,91638.0,0.00016372]
[1765205206560,0.0109124,91641.0,91638.0,0.00016372]
[1765205207465,0.001,91639.0,91638.0,0.00116372]
[1765205207755,0.23545,91639.0,91638.0,0.00116372]
[1765205208052,0.0109128,91638.0,91612.0,0.0109158]
[1765205208257,0.010913,91635.0,91625.0,0.0109141]
[1765205208456,0.010913,91635.0,91610.0,8.718e-05]
[1765205208457,0.0109125,91639.0,91629.0,0.0109137]
[1765205208754,0.001,91641.0,91620.0,0.2114463]
[1765205208954,0.00016372,91640.0,91634.0,0.0109131]
[1765205209262,0.00016372,91640.0,91638.0,0.22938]
[1765205209263,0.003,91639.0,91638.0,0.22938]
[1765205209561,0.003,91639.0,91638.0,0.23038]
[1765205210257,0.003,91639.0,91634.0,0.002]
[1765205210465,0.003,91639.0,91638.0,0.11301]
[1765205210763,0.00016372,91640.0,91639.0,0.2402925]
[1765205211854,0.1339763,91670.0,91660.0,0.07747]
[1765205212053,0.0109063,91692.0,91691.0,0.22938]
[1765205212266,0.0109031,91719.0,91681.0,0.0109075]
[1765205212267,0.010906,91694.0,91681.0,0.0109075]
[1765205212452,0.0109055,91699.0,91688.0,0.0109066]
[1765205212655,0.1339763,91700.0,91680.0,0.07747]
[1765205212859,0.00016362,91703.0,91684.0,0.00016362]
[1765205213057,0.00016362,91703.0,91701.0,0.0109051]
[1765205213265,0.00016362,91703.0,91702.0,0.22938]
[1765205213654,0.1339763,91730.0,91721.0,0.0109027]
[1765205213961,0.1339763,91730.0,91715.0,0.0109034]
[1765205214167,0.0109026,91723.0,91712.0,0.0109038]
[1765205214358,0.0109035,91715.0,91700.0,0.0109052]
[1765205214552,0.004,91703.0,91702.0,0.22938]
[1765205214971,0.00016353,91712.0,91711.0,0.240284]
[1765205215161,0.00016353,91712.0,91707.0,0.07747]
[1765205215366,0.007,91723.0,91722.0,0.22938]
[1765205216162,0.007,91723.0,91707.0,0.07747]
[1765205216359,0.010903,91719.0,91707.0,0.0883743]
[1765205216560,0.007,91723.0,91715.0,0.0109034]
[1765205216764,0.007,91723.0,91710.0,0.1339763]
[1765205217064,0.007,91723.0,91722.0,0.22938]
[1765205217250,0.00016248,91724.0,91723.0,0.22938]
[1765205218056,0.002,91723.0,91722.0,0.0109027]
[1765205218256,0.00109004,91740.0,91739.0,0.2402807]
[1765205218853,0.00109004,91740.0,91728.0,0.07747]
[1765205218854,0.00109004,91740.0,91729.0,0.0109018]
[1765205219053,0.00109004,91740.0,91726.0,0.0109022]
[1765205219054,0.0109012,91735.0,91726.0,0.0109022]
[1765205219356,0.00109004,91740.0,91725.0,0.00016353]
[1765205219564,0.00109004,91740.0,91739.0,0.21159]
[1765205219965,0.00101666,91740.0,91739.0,0.2224907]
[1765205220167,0.07093,91780.0,91747.0,0.0108997]
[1765205220168,0.0108984,91758.0,91747.0,0.0108997]
[1765205220462,0.0108984,91758.0,91723.0,0.001]
[1765205220463,0.1339763,91760.0,91743.0,0.00016353]
[1765205220762,0.0108999,91746.0,91743.0,0.00016353]
[1765205221063,0.0108995,91749.0,91707.0,0.07747]
[1765205221253,0.0109031,91719.0,91690.0,0.1339763]
[1765205221460,0.03542,91740.0,91700.0,0.2017263]
[1765205221461,0.0109025,91724.0,91700.0,0.2017263]
[1765205221661,0.03542,91740.0,91700.0,0.2017263]
[1765205221662,0.0109031,91719.0,91705.0,0.0109046]
[1765205221859,0.0109029,91721.0,91700.0,0.2017263]
[1765205222066,0.1339763,91710.0,91701.0,0.00016353]
[1765205222264,0.21719,91702.0,91701.0,0.00016353]
[1765205222563,0.1339763,91710.0,91677.0,0.010908]
[1765205222767,0.0109035,91716.0,91676.0,8.674e-05]
[1765205222768,0.1339763,91690.0,91676.0,8.674e-05]
[1765205222957,0.0109045,91707.0,91695.0,0.0109059]
[1765205223154,0.05676,91720.0,91701.0,0.001]
[1765205223354,0.00016353,91720.0,91701.0,0.00116353]
[1765205223558,0.21719,91702.0,91701.0,0.00116353]
[1765205223754,0.06631,91707.0,91676.0,8.674e-05]
[1765205223960,0.0109076,91681.0,91676.0,8.674e-05]
[1765205224259,0.3079926,91686.0,91640.0,0.06775]
[1765205224461,0.1339763,91650.0,91612.0,0.0288872]
[1765205224769,0.0109102,91659.0,91639.0,0.0109124]
[1765205224960,0.1339763,91660.0,91645.0,0.0109117]
[1765205224961,0.00016363,91646.0,91645.0,0.0109117]
[1765205225169,0.00025684,91646.0,91644.0,0.0109119]
[1765205225364,0.00025684,91646.0,91627.0,0.00016363]
[1765205225560,0.1339763,91640.0,91628.0,0.0109138]
[1765205225755,0.00025684,91646.0,91633.0,0.0109131]
[1765205225961,0.00025684,91646.0,91640.0,0.0109124]
[1765205226567,0.00025684,91646.0,91627.0,0.00116363]
[1765205226764,0.1339763,91640.0,91632.0,0.0109133]
[1765205227663,0.1339763,91640.0,91627.0,0.00016363]
[1765205227862,0.00025684,91646.0,91627.0,0.00016363]
[1765205228060,0.1339763,91640.0,91628.0,0.0109138]
[1765205228260,0.1339763,91640.0,91633.0,0.0109132]
[1765205228459,0.00025684,91646.0,91638.0,0.0109126]
[1765205228660,0.00025684,91646.0,91643.0,0.010912]
[1765205228862,0.00025684,91646.0,91632.0,0.0129134]
[1765205229065,0.00025684,91646.0,91632.0,0.002]
[1765205229066,0.1339763,91642.0,91632.0,0.002]
[1765205229263,0.00025684,91646.0,91642.0,0.0109121]
[1765205229465,0.00025684,91646.0,91645.0,0.21159]
[1765205229668,0.0109082,91676.0,91644.0,0.06775]
[1765205229865,0.1339763,91680.0,91650.0,0.1339763]
[1765205230064,0.1339763,91680.0,91666.0,0.0109093]
[1765205230265,0.06068,91697.0,91665.0,0.06775]
[1765205230266,0.0109061,91694.0,91665.0,0.06775]
[1765205230560,0.06068,91697.0,91665.0,0.06775]
[1765205230561,0.1339763,91680.0,91665.0,0.06775]
[1765205230870,0.0109088,91671.0,91669.0,0.00016363]
[1765205231062,0.0109087,91672.0,91669.0,0.00016363]
[1765205231365,0.003,91676.0,91673.0,0.0109084]
[1765205231869,0.00016363,91687.0,91679.0,0.2224978]
[1765205231870,0.004,91680.0,91679.0,0.2224978]
[1765205232068,0.004,91680.0,91678.0,0.0109079]
[1765205232972,0.004,91680.0,91679.0,0.003]
[1765205233173,0.010907,91686.0,91679.0,0.003]
[1765205233568,0.20761,91680.0,91679.0,0.003]
[1765205233878,0.1339763,91679.0,91647.0,0.0109115]
[1765205234172,0.1339763,91657.0,91623.0,0.06775]
[1765205234472,0.1339763,91637.0,91631.0,0.0109134]
[1765205234665,0.1339763,91637.0,91620.0,0.0109147]
[1765205234666,0.0109134,91632.0,91620.0,0.0109147]
[1765205234969,0.0109103,91659.0,91598.0,0.03921186]
[1765205234970,0.1339763,91630.0,91625.0,0.00016363]
[1765205235272,0.1339763,91640.0,91625.0,0.00016363]
[1765205235464,0.0109135,91632.0,91625.0,0.00016363]
[1765205235664,0.0109133,91634.0,91625.0,0.00016363]
[1765205235974,0.2185241,91626.0,91625.0,0.00016363]
[1765205236170,0.2185241,91626.0,91625.0,0.00316363]
[1765205236560,0.2185241,91626.0,91594.0,0.0288872]
[1765205236561,0.0109148,91620.0,91613.0,0.0109155]
[1765205236769,0.10200363,91643.0,91625.0,0.004]
[1765205236770,0.1339763,91630.0,91625.0,0.004]
[1765205237069,0.1448887,91640.0,91625.0,0.004]
[1765205237271,0.2679526,91640.0,91625.0,0.004]
[1765205237478,0.0109127,91638.0,91626.0,0.0109141]